bitfinex/quotes_SOLUSD_20250928
["timestamp","ask_amount","ask_price","bid_price","bid_amount"]
[1759103295980,0.72,211.07,211.02,5.3988873]
[1759103296179,14.31559401,211.06,210.98,40.25415153]
[1759103296495,14.31559401,211.05,210.97,0.66]
[1759103296698,13.59559401,211.03,210.97,0.66]
[1759103297212,36.76,211.04,210.97,0.66]
[1759103297580,36.76,211.06,210.99,26.0]
[1759103297799,36.76,211.06,211.01,4.73911189]
[1759103298125,37.48,211.06,211.02,0.66]
[1759103298717,37.48,211.06,211.01,4.73911189]
[1759103298905,37.48,211.06,211.01,0.66]
[1759103299418,37.48,211.06,211.0,4.73933649]
[1759103299577,36.76,211.06,211.02,0.66]
[1759103299782,50.33559401,211.07,211.02,0.66]
[1759103299982,50.33559401,211.07,211.0,16.58767772]
[1759103299983,50.33559401,211.07,211.03,0.66]
[1759103300207,50.33559401,211.07,211.0,4.73933649]
[1759103300398,50.33559401,211.07,211.03,0.66]
[1759103300793,50.99559401,211.07,211.03,0.66]
[1759103301003,13.59559401,211.07,211.01,0.67]
[1759103302203,37.4,211.08,211.02,4.7388873]
[1759103302384,37.4,211.08,211.02,5.4088873]
[1759103303296,37.4,211.08,211.02,17.25610557]
[1759103306687,0.66,211.07,211.02,17.25610557]
[1759103306891,0.66,211.07,211.03,0.67]
[1759103307786,0.66,211.07,211.04,4.73843821]
[1759103308592,0.66,211.06,211.04,4.73843821]
[1759103309006,0.66,211.06,211.02,16.58610557]
[1759103309513,0.66,211.06,211.02,17.25610557]
[1759103310396,13.59559401,211.07,211.03,0.67]
[1759103310597,0.66,211.11,211.03,0.67]
[1759103310810,13.59559401,211.1,211.03,0.67]
[1759103311197,0.66,211.12,211.03,0.67]
[1759103311393,37.4,211.12,211.05,26.0]
[1759103311607,14.25559401,211.11,211.05,26.0]
[1759103311812,14.25559401,211.11,211.06,0.67]
[1759103312006,14.25559401,211.11,211.07,0.67]
[1759103312612,13.59559401,211.13,211.08,4.73754026]
[1759103312915,14.25559401,211.13,211.08,5.40754026]
[1759103313096,0.66,211.12,211.08,5.40754026]
[1759103313492,0.66,211.11,211.08,4.73754026]
[1759103313894,0.66,211.13,211.08,5.40754026]
[1759103314111,0.66,211.12,211.08,5.40754026]
[1759103314516,13.59559401,211.14,211.07,26.0]
[1759103314796,0.66,211.11,211.06,30.7377846]
[1759103314997,0.66,211.1,211.06,30.7377846]
[1759103315197,0.66,211.09,211.06,30.7377846]
[1759103315916,13.59559401,211.14,211.06,30.7377846]
[1759103316099,0.66,211.11,211.06,30.7377846]
[1759103316303,0.66,211.1,211.06,30.7377846]
[1759103316616,0.66,211.09,211.06,26.0]
[1759103317016,0.66,211.08,211.04,5.40843729]
[1759103317219,0.66,211.08,211.04,31.40843729]
[1759103317714,13.59559401,211.09,211.04,30.73843729]
[1759103317920,0.66,211.09,211.04,31.40843729]
[1759103318818,0.66,211.08,211.02,11.84709682]
[1759103319006,0.66,211.08,211.03,4.73866274]
[1759103319208,0.66,211.07,211.03,30.73866274]
[1759103319501,13.59559401,211.1,211.02,5.4088413]
[1759103319710,13.59559401,211.08,211.02,5.4088413]
[1759103319902,0.66,211.07,211.02,5.4088413]
[1759103320097,0.66,211.06,211.02,5.4088413]
[1759103320497,0.66,211.08,211.03,0.67]
[1759103320715,0.66,211.07,211.03,0.67]
[1759103321125,0.66,211.07,211.03,5.40864767]
[1759103321421,50.31559401,211.1,211.0,11.84834123]
[1759103321625,0.66,211.07,211.01,0.67]
[1759103322725,13.59559401,211.06,210.99,26.67]
[1759103322923,13.59559401,211.04,210.99,0.67]
[1759103323330,0.66,211.04,211.0,0.67]
[1759103324523,13.59559401,211.05,211.01,5.40901634]
[1759103324910,14.25559401,211.05,211.01,5.40901634]
[1759103325416,0.66,211.04,210.99,0.67]
[1759103325725,0.66,211.03,210.98,4.73978576]
[1759103325928,0.66,211.03,210.98,5.40978576]
[1759103326122,0.66,211.03,210.99,0.67]
[1759103326325,0.66,211.04,211.0,0.67]
[1759103327006,13.59559401,211.05,210.98,4.73975704]
[1759103327211,13.59559401,211.05,210.99,0.67]
[1759103327418,14.25559401,211.05,210.99,0.67]
[1759103328302,14.25559401,211.05,210.98,4.73975704]
[1759103328506,13.59559401,211.03,210.98,4.73975704]
[1759103328722,0.66,211.02,210.96,42.13001719]
[1759103329126,0.66,211.02,210.96,53.31060497]
[1759103329313,13.59559401,211.03,210.97,0.67]
[1759103330516,14.25559401,211.03,210.98,4.73978576]
[1759103330715,0.68,211.02,210.98,4.73978576]
[1759103331033,0.68,211.02,210.98,5.38978576]
[1759103331217,13.59559401,211.03,210.98,4.73978576]
[1759103331417,0.68,211.01,210.98,4.73978576]
[1759103331728,0.68,211.02,210.98,4.73978576]
[1759103332208,0.68,211.01,210.98,4.73978576]
[1759103332718,0.68,211.01,210.97,0.65]
[1759103332915,0.68,211.0,210.96,30.74001755]
[1759103333222,13.59559401,211.01,210.97,0.65]
[1759103333422,13.59559401,211.03,210.96,30.74001755]
[1759103333729,13.59559401,211.01,210.96,31.39001755]
[1759103334023,14.27559401,211.01,210.97,0.65]
[1759103334729,14.27559401,211.01,210.97,5.38982649]
[1759103335624,16.78700028,211.05,210.98,0.65]
[1759103335924,0.68,211.03,210.98,0.65]
[1759103336128,13.59559401,211.04,210.99,0.65]
[1759103336326,0.68,211.04,211.0,0.65]
[1759103337229,13.59559401,211.02,210.99,4.73938335]
[1759103337624,13.59559401,211.02,210.99,5.38938335]
[1759103337818,14.27559401,211.02,210.99,4.73938335]
[1759103338023,13.59559401,211.02,210.99,5.38938335]
[1759103338225,0.68,211.04,210.99,5.38938335]
[1759103338226,13.59559401,211.03,210.99,5.38938335]
[1759103338425,14.27559401,211.03,210.99,5.38938335]
[1759103339612,14.27559401,211.03,210.97,4.74001042]
[1759103339613,0.68,211.02,210.97,4.74001042]
[1759103339923,0.68,211.01,210.97,5.39001042]
[1759103340231,0.68,211.01,210.97,4.74001042]
[1759103340432,14.27559401,211.03,210.98,0.65]
[1759103340733,14.27559401,211.03,210.99,0.65]
[1759103341116,36.72,211.05,211.0,0.65]
[1759103341327,0.68,211.08,211.0,0.65]
[1759103341533,13.59559401,211.07,211.0,0.65]
[1759103342042,13.59559401,211.07,211.01,16.58689161]
[1759103342237,13.59559401,211.07,211.02,0.65]
[1759103342531,0.68,211.07,211.03,0.65]
[1759103343530,13.59559401,211.08,211.03,0.65]
[1759103343739,0.68,211.07,211.03,0.65]
[1759103343920,0.68,211.07,211.04,4.73843821]
[1759103345136,13.59559401,211.05,211.02,4.73868316]
[1759103345334,14.27559401,211.05,211.02,4.73868316]
[1759103345736,13.59559401,211.05,211.02,5.38868316]
[1759103346038,14.27559401,211.05,211.01,4.73911189]
[1759103346240,14.27559401,211.05,211.01,5.38911189]
[1759103347329,14.27559401,211.08,211.02,0.65]
[1759103349641,14.27559401,211.08,211.03,4.73866274]
[1759103349838,14.27559401,211.08,211.03,5.38866274]
[1759103350140,0.68,211.07,211.03,4.73866274]
[1759103350348,0.68,211.06,211.03,4.73866274]
[1759103351021,0.68,211.06,211.03,5.38866274]
[1759103352349,14.26559401,211.08,211.03,5.38866274]
[1759103352535,0.67,211.07,211.03,5.38866274]
[1759103354442,0.67,211.07,211.01,11.84777972]
[1759103354743,13.59559401,211.08,211.01,11.84777972]
[1759103354744,14.26559401,211.08,211.02,0.67]
[1759103354943,50.98559401,211.08,211.02,0.67]
[1759103356446,14.26559401,211.08,211.03,4.73866274]
[1759103356751,0.67,211.07,211.03,5.40866274]
[1759103358350,0.67,211.07,211.03,17.25531961]
[1759103358725,0.67,211.07,211.03,0.67]
[1759103360638,0.69,211.06,210.99,4.73956111]
[1759103360939,56.56101234,211.08,210.99,4.73956111]
[1759103360940,13.59559401,211.04,210.99,4.73956111]
[1759103361140,0.69,211.03,210.99,4.73956111]
[1759103361337,0.69,211.02,210.99,4.73956111]
[1759103361942,51.00559401,211.04,210.99,0.67]
[1759103362160,0.69,211.03,210.99,0.67]
[1759103362860,0.69,211.03,210.94,4.74068455]
[1759103362861,0.69,211.02,210.94,4.74068455]
[1759103363029,13.59559401,211.0,210.93,5.6108904]
[1759103363229,13.59559401,210.98,210.93,0.2]
[1759103363443,13.59559401,210.96,210.93,0.2]
[1759103363648,0.69,210.95,210.93,0.2]
[1759103363848,0.69,210.94,210.93,0.2]
[1759103364952,51.00559401,210.94,210.93,0.2]
[1759103365652,50.31559401,210.94,210.93,0.2]
[1759103365855,0.69,210.97,210.93,5.6109093]
[1759103366035,36.72,210.97,210.94,0.67]
[1759103366242,14.28559401,210.96,210.93,0.2]
[1759103366762,0.69,210.95,210.93,0.2]
[1759103367638,13.59559401,210.96,210.93,0.2]
[1759103367847,13.59559401,210.94,210.93,0.2]
[1759103368045,50.31559401,210.94,210.93,0.2]
[1759103368246,51.00559401,210.94,210.93,0.2]
[1759103371167,13.59559401,210.97,210.93,5.6109093]
[1759103371341,1.50786811,211.03,210.93,5.6109093]
[1759103371342,13.59559401,210.95,210.93,0.2]
[1759103371744,14.28559401,210.94,210.93,0.2]
[1759103372346,51.00559401,210.94,210.93,0.2]
[1759103373255,50.31559401,210.94,210.93,0.2]
[1759103373649,50.31559401,210.94,210.93,4.9409093]
[1759103374971,13.59559401,210.98,210.93,5.6109093]
[1759103375135,36.72,210.97,210.94,0.67]
[1759103375341,36.72,210.97,210.95,0.67]
[1759103376160,50.31559401,210.97,210.96,4.74023511]
[1759103376675,50.31559401,210.97,210.96,5.41023511]
[1759103377364,50.31559401,210.97,210.96,4.74023511]
[1759103377684,50.31559401,210.97,210.94,5.41046459]
[1759103377966,51.00559401,210.97,210.94,4.74046459]
[1759103379747,0.69,210.96,210.94,4.74046459]
[1759103381980,50.31559401,210.97,210.93,0.2]
[1759103382280,0.69,210.95,210.93,0.2]
[1759103382583,50.31559401,210.94,210.93,0.2]
[1759103382980,51.00559401,210.94,210.93,0.2]
[1759103384580,55.74627856,210.94,210.93,0.2]
[1759103384967,51.00559401,210.94,210.93,0.2]
[1759103385174,55.74627856,210.94,210.93,0.2]
[1759103385383,58.92826693,210.94,210.93,0.2]
[1759103386159,14.28559401,210.94,210.93,0.2]
[1759103386364,52.51346212,210.94,210.93,0.2]
[1759103386592,55.69409281,210.94,210.93,0.2]
[1759103387284,52.51346212,210.94,210.93,0.2]
[1759103387462,15.79346212,210.94,210.93,0.2]
[1759103387662,52.51346212,210.94,210.93,0.2]
[1759103390368,78.51346212,210.94,210.93,0.2]
[1759103390666,41.79346212,210.94,210.93,0.2]
[1759103390871,78.51346212,210.94,210.93,0.2]
[1759103394185,83.25414667,210.94,210.93,0.2]
[1759103394362,46.53414667,210.94,210.93,0.2]
[1759103394573,83.25414667,210.94,210.93,0.2]
[1759103394782,46.53414667,210.94,210.93,0.2]
[1759103394979,83.25414667,210.94,210.93,0.2]
[1759103395383,57.25414667,210.94,210.93,0.2]
[1759103396891,60.43285368,210.94,210.93,0.2]
[1759103397090,72.49092754,210.94,210.93,0.2]
[1759103398905,35.77092754,210.94,210.93,0.2]
[1759103399076,32.59222053,210.94,210.93,0.2]
[1759103399277,57.27414667,210.94,210.93,0.2]
[1759103399580,62.35548645,210.94,210.93,0.2]
[1759103400789,60.45285368,210.94,210.93,0.2]
[1759103401877,23.71285368,210.94,210.93,0.2]
[1759103402074,57.27414667,210.94,210.93,0.2]
[1759103402278,23.71285368,210.94,210.93,0.2]
[1759103402479,57.27414667,210.94,210.93,0.2]
[1759103402680,60.45285368,210.94,210.93,0.2]
[1759103403994,28.6562061,210.94,210.93,0.2]
[1759103404197,25.47749909,210.94,210.93,0.2]
[1759103404403,57.24414667,210.94,210.93,0.2]
[1759103404593,60.42285368,210.94,210.93,0.2]
[1759103406207,86.42285368,210.94,210.93,0.2]
[1759103406782,49.68285368,210.94,210.93,0.2]
[1759103406986,86.42285368,210.94,210.93,0.2]
[1759103407902,49.68285368,210.94,210.93,0.2]
[1759103408090,86.42285368,210.94,210.93,0.2]
[1759103410515,49.68285368,210.94,210.93,0.2]
[1759103410695,86.42285368,210.94,210.93,0.2]
[1759103412585,49.68285368,210.94,210.93,0.2]
[1759103412799,85.76285368,210.94,210.93,0.2]
[1759103413903,18.28216913,210.94,210.93,0.9]
[1759103414100,51.84346212,210.94,210.93,0.9]
[1759103414403,55.02216913,210.94,210.93,0.9]
[1759103414600,44.28216913,210.94,210.93,0.9]
[1759103414910,51.84346212,210.94,210.93,0.9]
[1759103415104,18.28216913,210.94,210.93,0.9]
[1759103415310,15.10346212,210.94,210.93,0.9]
[1759103415512,51.84346212,210.94,210.93,0.9]
[1759103415700,16.77430102,210.94,210.93,0.9]
[1759103415898,39.59559401,210.94,210.93,0.9]
[1759103416102,77.84346212,210.94,210.93,0.9]
[1759103416306,81.02216913,210.94,210.93,0.9]
[1759103416612,44.28216913,210.94,210.93,0.2]
[1759103416815,81.02216913,210.94,210.93,0.9]
[1759103417011,85.76285368,210.94,210.93,0.2]
[1759103418899,59.76285368,210.94,210.93,0.2]
[1759103420225,60.61560244,210.94,210.93,0.2]
[1759103420731,61.29560244,210.94,210.93,0.2]
[1759103421643,39.59559401,210.9,210.86,0.67]
[1759103421823,41.95621088,210.87,210.86,0.67]
[1759103422012,78.67621088,210.87,210.86,0.67]
[1759103422825,81.87042149,210.87,210.86,0.67]
[1759103423831,45.15042149,210.87,210.86,0.67]
[1759103424336,81.89042149,210.87,210.86,0.67]
[1759103424829,45.15042149,210.87,210.86,0.67]
[1759103425014,81.89042149,210.87,210.86,0.67]
[1759103426951,13.59559401,210.86,210.84,0.67]
[1759103427231,13.59559401,210.84,210.82,0.2]
[1759103427439,50.33559401,210.83,210.82,0.2]
[1759103427827,53.53534007,210.83,210.82,0.2]
[1759103428431,53.53534007,210.83,210.82,0.87]
[1759103428740,16.79534007,210.83,210.82,0.87]
[1759103429034,53.53534007,210.83,210.82,0.87]
[1759103429644,16.79534007,210.83,210.82,0.87]
[1759103429845,13.59559401,210.83,210.82,0.87]
[1759103430050,50.33559401,210.83,210.82,0.87]
[1759103430221,55.89595694,210.83,210.82,0.87]
[1759103430729,55.89595694,210.83,210.82,0.2]
[1759103431751,16.79534007,210.83,210.82,0.2]
[1759103431922,13.59559401,210.83,210.82,5.61338298]
[1759103432122,50.33559401,210.83,210.82,5.61338298]
[1759103433245,13.59559401,210.83,210.82,5.61338298]
[1759103433548,3.19605831,210.88,210.82,17.47184043]
[1759103433740,5.55667518,210.92,210.83,0.67]
[1759103433925,13.59559401,210.9,210.83,0.67]
[1759103434240,2.36061687,210.95,210.83,0.67]
[1759103434548,36.74,210.94,210.83,0.67]
[1759103434733,5.555635,210.95,210.83,0.67]
[1759103434923,13.59559401,210.92,210.83,0.67]
[1759103435124,0.68,210.98,210.83,0.67]
[1759103435125,2.36061687,210.99,210.87,26.0]
[1759103435433,13.59559401,210.97,210.88,0.67]
[1759103435744,13.59559401,210.95,210.88,0.67]
[1759103436129,36.74,210.94,210.89,16.59632983]
[1759103436433,13.59559401,210.98,210.9,0.67]
[1759103436747,13.59559401,210.99,210.9,0.67]
[1759103436945,13.59559401,210.97,210.9,0.67]
[1759103437825,13.59559401,211.0,210.9,0.67]
[1759103438186,36.72,210.99,210.9,0.67]
[1759103438323,36.72,210.99,210.91,16.59475605]
[1759103438518,36.72,210.99,210.92,0.67]
[1759103440143,36.72,210.99,210.93,16.59318256]
[1759103440344,36.72,210.99,210.94,0.67]
[1759103440541,13.59559401,211.0,210.94,0.67]
[1759103440750,36.72,210.99,210.94,0.67]
[1759103441938,36.72,210.99,210.95,16.59160938]
[1759103442142,36.72,210.99,210.96,0.67]
[1759103442560,36.72,210.99,210.97,0.67]
[1759103443448,50.31559401,210.99,210.98,4.73978576]
[1759103444361,13.59559401,210.99,210.98,4.73978576]
[1759103444556,50.31559401,210.99,210.98,4.73978576]
[1759103444939,13.59559401,210.99,210.98,4.73978576]
[1759103445260,50.31559401,210.99,210.98,4.73978576]
[1759103445675,13.59559401,210.99,210.98,4.73978576]
[1759103445957,50.31559401,210.99,210.98,4.73978576]
[1759103446548,50.99559401,210.99,210.93,0.67]
[1759103447164,36.7,210.98,210.93,0.67]
[1759103447656,36.7,210.98,210.94,16.59239593]
[1759103447862,36.7,210.98,210.94,17.26239593]
[1759103448056,36.7,210.98,210.94,16.59239593]
[1759103448366,36.7,210.98,210.95,0.67]
[1759103448663,50.29559401,210.99,210.95,0.67]
[1759103449160,50.29559401,210.99,210.96,0.67]
[1759103449865,50.97559401,210.99,210.97,4.74001042]
[1759103450065,50.29559401,210.99,210.97,4.74001042]
[1759103450363,14.27559401,210.99,210.97,4.74001042]
[1759103450560,36.7,210.98,210.97,4.74001042]
[1759103451260,36.7,210.98,210.97,5.43001042]
[1759103451463,36.7,210.98,210.97,4.74001042]
[1759103451972,36.7,210.98,210.96,4.74023511]
[1759103453175,13.59559401,210.99,210.96,5.43023511]
[1759103453366,36.7,210.98,210.96,5.43023511]
[1759103453743,0.66,210.97,210.96,4.74023511]
[1759103454258,0.66,210.97,210.93,4.7409093]
[1759103454442,0.66,210.96,210.93,4.7409093]
[1759103454644,36.7,210.97,210.93,4.7409093]
[1759103454864,36.7,210.97,210.93,16.59318256]
[1759103455070,36.7,210.97,210.94,0.69]
[1759103455567,36.7,210.97,210.95,0.69]
[1759103455768,13.59559401,211.01,210.95,0.69]
[1759103455967,13.59559401,210.99,210.95,0.69]
[1759103456279,0.66,211.01,210.96,4.74023511]
[1759103456577,13.59559401,210.99,210.96,4.74023511]
[1759103456744,13.59559401,210.97,210.96,4.74023511]
[1759103458897,13.59559401,210.97,210.95,16.59125933]
[1759103461301,13.59559401,210.97,210.95,4.74045982]
[1759103462277,13.59559401,210.97,210.96,0.69]
[1759103463211,13.59559401,211.0,210.96,5.43023511]
[1759103463388,13.59559401,210.97,210.96,4.74023511]
[1759103463579,13.59559401,210.97,210.96,5.43023511]
[1759103465726,36.7,210.98,210.96,5.43023511]
[1759103466201,50.29559401,210.98,210.97,0.69]
[1759103466403,13.59559401,210.98,210.97,0.69]
[1759103466818,13.59559401,210.98,210.96,4.74023511]
[1759103467025,13.59559401,210.98,210.96,0.69]
[1759103467496,13.59559401,210.98,210.91,23.70569804]
[1759103467815,36.7,210.99,210.94,0.69]
[1759103468114,13.59559401,210.99,210.94,26.69]
[1759103468311,13.59559401,211.0,210.95,0.69]
[1759103468713,13.59559401,211.0,210.94,26.0]
[1759103468897,0.66,210.99,210.97,4.74001042]
[1759103469102,0.66,210.98,210.97,4.74001042]
[1759103469997,13.59559401,210.99,210.97,4.74001042]
[1759103471027,36.68,211.0,210.96,16.59055328]
[1759103471200,13.59559401,211.03,210.98,0.69]
[1759103471399,0.66,211.04,210.98,0.69]
[1759103471400,13.59559401,211.01,210.98,0.69]
[1759103471602,13.59559401,211.01,210.98,0.7]
[1759103471810,36.68,211.02,210.96,16.59055328]
[1759103471811,36.68,211.02,210.99,0.7]
[1759103472419,36.68,211.02,210.96,16.59055328]
[1759103472619,13.59559401,211.01,210.97,0.7]
[1759103473129,0.68,211.01,210.98,16.58925016]
[1759103473522,13.59559401,211.02,210.98,16.58925016]
[1759103473714,14.27559401,211.02,210.98,16.58925016]
[1759103474329,50.95559401,211.02,210.98,16.58925016]
[1759103475712,50.95559401,211.02,210.98,0.7]
[1759103476216,50.27559401,211.02,210.95,26.0]
[1759103476416,0.68,211.01,210.96,0.7]
[1759103476630,0.68,211.01,210.97,0.7]
[1759103477722,0.68,211.01,210.98,16.58925016]
[1759103478119,0.68,211.0,210.98,16.58925016]
[1759103478331,0.68,210.99,210.98,4.73978576]
[1759103478513,13.59559401,211.0,210.98,4.73978576]
[1759103478822,50.95559401,211.0,210.98,4.73978576]
[1759103480239,13.59559401,211.0,210.97,17.28994445]
[1759103480625,13.59559401,211.0,210.98,0.7]
[1759103480824,36.68,211.01,210.97,16.58994445]
[1759103481137,36.68,211.01,210.99,0.67]
[1759103481138,13.59559401,211.01,210.99,0.67]
[1759103481339,13.59559401,211.01,210.97,17.25994445]
[1759103483118,13.59559401,211.01,210.95,49.70119518]
[1759103483449,13.59559401,211.01,210.96,0.67]
[1759103484840,8.73561337,211.11,210.96,0.67]
[1759103485137,37.34,211.03,210.96,0.67]
[1759103485334,37.34,211.03,210.97,16.59003649]
[1759103485516,37.34,211.03,210.98,0.67]
[1759103485919,0.66,211.02,210.98,0.67]
[1759103486523,36.68,211.03,210.98,0.67]
[1759103486727,0.66,211.02,210.98,0.67]
[1759103487033,0.66,211.01,210.97,16.59003649]
[1759103487236,0.66,211.01,210.97,17.26003649]
[1759103488340,0.66,211.01,210.97,0.67]
[1759103489366,0.66,211.01,210.98,0.67]
[1759103489557,13.59559401,211.01,210.98,0.67]
[1759103490659,14.25559401,211.01,210.99,4.73956111]
[1759103491042,0.66,211.0,210.99,4.73956111]
[1759103491241,14.25559401,211.0,210.99,4.73956111]
[1759103491767,0.1,211.15,211.02,26.0]
[1759103491969,0.1,211.15,211.06,26.0]
[1759103492135,0.1,211.15,211.1,26.0]
[1759103492540,0.1,211.15,211.12,16.57824932]
[1759103493070,0.1,211.15,211.12,17.24824932]
[1759103493269,0.76,211.15,211.12,16.57824932]
[1759103493652,0.66,211.14,211.12,4.73664266]
[1759103493965,0.66,211.13,211.12,4.73664266]
[1759103494874,23.98,211.14,211.09,16.58020266]
[1759103495052,24.64,211.14,211.09,17.25020266]
[1759103495464,24.64,211.14,211.1,0.67]
[1759103495874,24.64,211.14,211.09,16.58020266]
[1759103496079,0.66,211.13,211.09,17.25020266]
[1759103496883,13.59559401,211.14,211.1,0.67]
[1759103497088,14.25559401,211.14,211.09,16.58020266]
[1759103497285,0.66,211.13,211.09,16.58020266]
[1759103497576,13.59559401,211.14,211.09,17.25020266]
[1759103497773,13.59559401,211.14,211.1,0.67]
[1759103497975,0.1,211.15,211.1,0.67]
[1759103498862,0.1,211.15,211.13,4.73641832]
[1759103499059,0.1,211.15,211.14,0.67]
[1759103501483,0.1,211.15,211.14,5.40619399]
[1759103506088,0.1,211.15,211.14,4.73619399]
[1759103506792,0.1,211.15,211.14,5.40619399]
[1759103510389,0.1,211.15,211.14,4.73619399]
[1759103510603,0.1,211.15,211.14,5.40619399]
[1759103511898,0.1,211.15,211.14,4.73619399]
[1759103512081,0.1,211.15,211.14,5.43619399]
[1759103512283,0.1,211.19,211.14,5.43619399]
[1759103512284,0.1,211.22,211.17,26.0]
[1759103512506,1e-08,211.23,211.22,30.73440015]
[1759103512816,0.1,211.29,211.25,26.0]
[1759103513185,13.59559401,211.33,211.25,26.0]
[1759103513186,0.67,211.33,211.26,0.7]
[1759103514706,0.67,211.33,211.27,16.5664789]
[1759103515086,0.67,211.33,211.28,0.7]
[1759103515488,0.67,211.33,211.29,0.7]
[1759103515690,0.89952155,211.35,211.27,17.2664789]
[1759103515988,0.67,211.34,211.27,17.2664789]
[1759103516185,0.67,211.33,211.27,17.2664789]
[1759103516411,0.67,211.32,211.27,16.5664789]
[1759103516591,13.59559401,211.34,211.28,0.7]
[1759103516791,14.26559401,211.34,211.28,0.7]
[1759103518409,0.67,211.34,211.28,0.7]
[1759103518708,0.67,211.34,211.29,16.56491078]
[1759103518917,0.67,211.33,211.29,16.56491078]
[1759103519122,0.67,211.32,211.29,16.56491078]
[1759103519309,0.67,211.31,211.29,16.56491078]
[1759103519821,0.67,211.33,211.29,16.56491078]
[1759103520115,0.89952155,211.35,211.29,16.56491078]
[1759103520116,0.67,211.32,211.29,16.56491078]
[1759103520828,0.67,211.32,211.29,11.83207913]
[1759103521016,0.89952155,211.35,211.3,0.7]
[1759103521388,0.89952155,211.35,211.32,26.0]
[1759103521592,134.8084838,211.45,211.33,0.7]
[1759103521593,0.5,211.45,211.33,0.7]
[1759103521894,0.67,211.44,211.35,26.0]
[1759103522119,13.59559401,211.44,211.32,26.0]
[1759103522412,38.43,211.45,211.35,26.7]
[1759103522614,38.43,211.45,211.36,0.7]
[1759103522821,13.59559401,211.45,211.36,0.7]
[1759103523006,13.59559401,211.45,211.37,16.55864123]
[1759103523312,39.59559401,211.48,211.37,4.73104035]
[1759103523615,13.59559401,211.43,211.37,16.55864123]
[1759103523809,13.59559401,211.44,211.37,16.55864123]
[1759103524608,13.59559401,211.44,211.37,17.25864123]
[1759103524815,14.26559401,211.44,211.37,17.25864123]
[1759103525011,0.67,211.43,211.37,16.55864123]
[1759103525206,0.67,211.42,211.37,16.55864123]
[1759103525518,13.59559401,211.44,211.35,4.73129355]
[1759103525519,0.67,211.41,211.35,4.73129355]
[1759103525710,2.1784838,211.4,211.34,4.73171193]
[1759103526214,1.5084838,211.4,211.34,4.73171193]
[1759103526416,13.59559401,211.38,211.32,4.7320172]
[1759103526618,0.67,211.37,211.32,4.7320172]
[1759103526804,40.26559401,211.39,211.32,5.4320172]
[1759103527199,0.67,211.38,211.32,4.7320172]
[1759103527404,37.24,211.37,211.32,17.26241659]
[1759103527619,0.67,211.38,211.33,0.7]
[1759103527924,37.91,211.38,211.33,0.7]
[1759103529223,37.91,211.38,211.34,4.73171193]
[1759103529603,41.10407781,211.39,211.34,4.73171193]
[1759103529802,76.79559401,211.39,211.35,0.7]
[1759103530004,39.59559401,211.39,211.35,0.7]
[1759103530306,76.79559401,211.39,211.35,0.7]
[1759103530911,39.59559401,211.39,211.36,4.73126419]
[1759103531117,76.79559401,211.39,211.36,4.73126419]
[1759103531423,0.67,211.38,211.31,11.83072601]
[1759103531612,0.66,211.38,211.31,11.83072601]
[1759103531920,76.79559401,211.39,211.29,4.73283165]
[1759103531921,2.1684838,211.37,211.29,4.73283165]
[1759103532143,1.5084838,211.34,211.29,5.40283165]
[1759103532360,39.3484838,211.34,211.29,5.40283165]
[1759103533532,38.6884838,211.34,211.29,4.73283165]
[1759103533841,0.66,211.33,211.29,4.73283165]
[1759103534042,0.66,211.33,211.27,5.40320456]
[1759103534259,14.25559401,211.33,211.27,5.40320456]
[1759103534545,14.25559401,211.33,211.27,4.73320456]
[1759103534847,0.66,211.32,211.25,4.73360984]